bitfinex/quotes_ETHUSD_20260121
["timestamp","ask_amount","ask_price","bid_price","bid_amount"]
[1769026241112,6.6089485,3026.2,3023.9,13.93672401]
[1769026241315,0.09838485,3026.1,3024.0,9.9206349]
[1769026241537,0.67073334,3026.0,3024.1,0.36926988]
[1769026242446,0.09838485,3026.1,3024.2,0.546]
[1769026242753,0.09838485,3025.7,3024.0,3.3068783]
[1769026242956,0.09838485,3025.5,3023.9,3.2235947]
[1769026243154,0.09838485,3025.5,3023.4,3.30747588]
[1769026243155,0.09838485,3024.8,3023.4,3.85349868]
[1769026243312,0.09838485,3024.6,3023.4,0.546]
[1769026243517,0.67106109,3024.5,3023.4,0.546]
[1769026243961,0.67106109,3024.5,3023.1,3.30782634]
[1769026244142,0.67106109,3024.5,3023.3,0.546]
[1769026244656,0.09838485,3024.6,3023.3,0.546]
[1769026245017,6.61113314,3025.2,3023.4,3.30753456]
[1769026245212,6.61113314,3025.2,3022.4,3.30855553]
[1769026245213,0.09838485,3024.6,3022.4,3.30855553]
[1769026245418,0.09838485,3024.6,3023.3,3.3076088]
[1769026245728,0.09838485,3025.1,3023.3,3.3076088]
[1769026245927,6.70982447,3025.1,3023.4,0.33076088]
[1769026246125,0.09838485,3024.7,3023.3,0.546]
[1769026246448,0.09838485,3024.5,3023.2,0.546]
[1769026246962,0.09838485,3024.5,3021.6,0.09838485]
[1769026246963,0.09838485,3024.1,3021.6,12.06869492]
[1769026247114,0.09838485,3023.7,3021.7,0.546]
[1769026247445,3.40565658,3023.7,3021.7,0.546]
[1769026247811,0.09838485,3023.7,3021.8,9.92785755]
[1769026248114,0.09838485,3023.5,3021.8,9.92785755]
[1769026248316,0.3503999,3023.5,3021.9,12.06869492]
[1769026248549,3.40543156,3023.9,3021.9,12.06869492]
[1769026248735,3.40543156,3023.9,3021.8,6.6185717]
[1769026248736,0.09838485,3023.5,3021.8,6.6185717]
[1769026248935,0.09838485,3023.5,3021.8,9.92785755]
[1769026249446,0.09838485,3023.7,3021.8,9.92785755]
[1769026249625,0.09838485,3023.5,3021.8,9.92785755]
[1769026249819,0.35039798,3023.5,3021.8,13.2371434]
[1769026250059,0.09838485,3024.0,3022.0,12.06869492]
[1769026250214,0.09838485,3023.8,3022.0,12.06869492]
[1769026250417,0.09838485,3023.1,3021.8,3.30928585]
[1769026250618,0.09838485,3023.1,3021.3,12.08885242]
[1769026250619,0.09838485,3022.7,3021.3,0.0201575]
[1769026250968,0.09838485,3023.2,3021.7,6.6187592]
[1769026251268,0.09838485,3022.9,3021.7,3.30939537]
[1769026251449,0.09838485,3022.9,3021.5,6.61922884]
[1769026251755,0.09838485,3023.6,3021.5,9.92884326]
[1769026251756,0.09838485,3023.1,3021.5,9.92884326]
[1769026251927,0.09838485,3023.6,3021.5,25.3071526]
[1769026252130,0.09838485,3023.5,3021.6,12.06869492]
[1769026252318,0.09838485,3022.5,3021.5,3.30961442]
[1769026252516,0.09838485,3022.3,3021.3,3.3299622]
[1769026252721,0.09838485,3022.3,3020.7,3.31042623]
[1769026252722,0.09838485,3021.5,3020.8,3.310353]
[1769026253043,0.09838485,3021.5,3020.8,3.31037602]
[1769026253253,0.09838485,3021.7,3021.0,3.31007189]
[1769026253555,0.09838485,3021.7,3020.8,3.31037602]
[1769026253556,0.09838485,3022.1,3020.8,9.93113872]
[1769026253863,0.09838485,3022.3,3020.8,10.31677632]
[1769026254064,0.09838485,3021.9,3020.8,7.00639497]
[1769026254237,0.09838485,3021.9,3020.7,0.546]
[1769026254427,0.09838485,3021.7,3019.9,0.0008]
[1769026254666,0.09838485,3021.7,3020.0,0.547]
[1769026254831,0.09838485,3021.5,3020.0,0.547]
[1769026255137,0.09838485,3021.1,3020.0,0.547]
[1769026255336,6.62032438,3021.0,3020.0,0.547]
[1769026255529,0.67187092,3020.9,3020.0,3.31125827]
[1769026255729,3.30971137,3021.5,3020.0,3.31125827]
[1769026255730,12.69521064,3021.9,3020.0,3.31125827]
[1769026255940,3.30895734,3022.1,3020.0,6.62251654]
[1769026256148,0.09838485,3022.0,3020.0,9.93377481]
[1769026256358,0.34073422,3021.9,3020.0,13.24403404]
[1769026256563,0.09838485,3022.4,3020.0,13.24403404]
[1769026256564,3.30887784,3022.2,3020.0,13.24403404]
[1769026256774,3.40702091,3022.4,3020.0,9.93277577]
[1769026257075,12.69521064,3022.5,3020.0,25.31272896]
[1769026257272,1.26952106,3022.4,3020.4,12.16707977]
[1769026257589,12.69521064,3022.9,3020.5,13.24284056]
[1769026257729,12.79359549,3022.9,3020.5,6.62142028]
[1769026257933,12.79359549,3022.7,3020.5,6.62142028]
[1769026258131,0.09838485,3022.1,3020.5,6.62142028]
[1769026258331,0.09838485,3021.9,3020.6,0.547]
[1769026259376,0.09838485,3022.1,3020.7,6.62098188]
[1769026259575,0.09838485,3022.3,3020.7,3.31049094]
[1769026259880,3.30882262,3022.3,3020.7,7.55373097]
[1769026260376,0.09838485,3022.2,3020.7,3.69624003]
[1769026260549,0.09838485,3022.0,3020.7,3.85749094]
[1769026260750,8.55735854,3022.8,3020.7,0.547]
[1769026260952,1.94095399,3022.8,3020.7,12.59393503]
[1769026261249,0.09838485,3022.5,3020.7,12.59393503]
[1769026261474,0.09838485,3022.7,3020.8,7.1677627]
[1769026261676,0.09838485,3022.6,3020.8,0.547]
[1769026261866,0.09838485,3022.4,3020.8,0.547]
[1769026262068,0.09838485,3022.1,3020.8,0.547]
[1769026262471,0.09838485,3022.6,3020.8,0.547]
[1769026263078,0.09838485,3021.9,3020.7,6.62092279]
[1769026263279,0.09838485,3021.7,3020.7,3.85748615]
[1769026263601,3.40702449,3022.4,3020.7,7.16797709]
[1769026263766,0.09838485,3022.2,3020.7,7.16797709]
[1769026263965,0.09838485,3022.0,3020.7,7.16797709]
[1769026264196,0.09838485,3021.8,3020.7,3.85748615]
[1769026264402,0.09838485,3022.4,3020.7,7.16797709]
[1769026264573,0.09838485,3022.4,3020.7,10.47846803]
[1769026264574,0.09838485,3022.2,3020.7,10.47846803]
[1769026264771,15.41477344,3023.0,3020.7,10.47846803]
[1769026264772,0.09838485,3023.4,3020.7,29.14638494]
[1769026265098,0.09838485,3023.4,3021.1,12.28050533]
[1769026265284,0.09508485,3023.0,3021.1,12.04693503]
[1769026265495,3.40615858,3023.2,3021.2,25.28670727]
[1769026265496,0.09838485,3023.2,3021.2,25.28670727]
[1769026265700,3.40761007,3023.7,3021.3,12.04693503]
[1769026265916,0.09838485,3023.4,3021.4,12.04693503]
[1769026266068,0.09838485,3023.2,3021.4,12.04693503]
[1769026266268,0.09838485,3023.0,3021.2,6.61988612]
[1769026266683,0.09838485,3022.8,3021.2,6.61988612]
[1769026266883,0.09838485,3023.0,3021.2,3.30994306]
[1769026267085,0.09838485,3022.3,3021.2,3.30994306]
[1769026267500,0.09838485,3022.5,3020.8,9.93110706]
[1769026267700,0.34068513,3022.4,3020.8,9.93110706]
[1769026268007,0.34068513,3022.4,3020.8,6.62072571]
[1769026268506,0.09838485,3022.3,3020.8,6.62072571]
[1769026268686,3.4069308,3022.5,3020.8,9.93110706]
[1769026269000,0.09838485,3022.6,3020.8,6.62072571]
[1769026269204,0.09838485,3022.6,3020.8,9.93110706]
[1769026269416,3.30786278,3023.1,3020.8,13.24148841]
[1769026269589,0.09838485,3022.9,3020.8,13.24148841]
[1769026270098,0.09838485,3022.9,3020.8,25.28842344]
[1769026270290,0.09838485,3022.6,3020.8,21.97804209]
[1769026270675,0.09838485,3022.6,3020.8,6.62072571]
[1769026271403,3.40625908,3023.1,3020.8,25.28842344]
[1769026271608,0.09838485,3023.4,3020.9,12.04693503]
[1769026271783,0.002,3024.0,3021.7,12.04693503]
[1769026271973,0.002,3024.0,3021.6,0.2335703]
[1769026271974,0.002,3024.0,3021.9,12.04693503]
[1769026272875,12.10674462,3025.0,3021.9,12.04693503]
[1769026273075,0.09838485,3025.4,3022.6,0.09838485]
[1769026273287,0.09838485,3025.4,3022.9,0.09838485]
[1769026273488,0.33052194,3025.5,3023.1,0.09838485]
[1769026273699,12.10674462,3026.3,3023.3,0.09838485]
[1769026273906,12.20512947,3026.2,3023.5,0.09838485]
[1769026274215,0.09838485,3026.0,3023.5,0.09838485]
[1769026274915,0.09838485,3026.0,3023.6,0.547]
[1769026274916,0.09838485,3025.4,3023.6,0.547]
[1769026275483,9.91637193,3025.3,3023.6,0.547]
[1769026275710,1.00147568,3025.2,3023.6,3.85426992]
[1769026275916,1.00147568,3025.2,3023.6,0.547]
[1769026276515,1.09986053,3025.2,3023.6,0.547]
[1769026276815,0.09838485,3025.0,3023.6,0.547]
[1769026277001,0.09838485,3024.6,3022.4,11.87993503]
[1769026277204,0.09838485,3024.6,3022.8,0.547]
[1769026277516,6.61266324,3024.5,3022.9,3.30808164]
[1769026277980,3.30633162,3024.5,3022.9,6.61616328]
[1769026278621,6.61266324,3024.5,3022.9,6.61616328]
[1769026278912,0.66126632,3024.4,3022.9,3.30808164]
[1769026279106,0.66126632,3024.4,3022.8,3.85515714]
[1769026279413,0.66126632,3024.4,3022.8,7.16334822]
[1769026279783,0.66126632,3024.4,3022.8,10.4715393]
[1769026279980,0.09838485,3025.0,3022.8,10.4715393]
[1769026280186,6.61181054,3024.9,3022.9,12.75897408]
[1769026280621,3.30590527,3024.9,3022.9,12.75897408]
[1769026281685,3.30590527,3024.9,3023.0,9.92391663]
[1769026281881,0.67100953,3024.8,3023.0,22.68289071]
[1769026282085,0.002,3024.6,3023.0,22.68289071]
[1769026282620,0.002,3024.6,3023.0,25.99086292]
[1769026282998,0.002,3024.6,3023.0,13.23188884]
[1769026283200,0.002,3024.6,3023.1,12.75897408]
[1769026283816,0.002,3024.6,3023.2,22.68223419]
[1769026284030,0.002,3024.6,3023.2,19.37448082]
[1769026284233,0.002,3024.6,3023.2,6.61550674]
[1769026284930,0.002,3024.6,3023.2,19.37448082]
[1769026285433,0.002,3024.6,3023.2,6.61550674]
[1769026286032,0.002,3024.6,3022.9,6.61610084]
[1769026286399,0.002,3024.6,3023.0,12.75897408]
[1769026286602,0.002,3024.6,3022.9,6.61610084]
[1769026286807,0.002,3024.6,3022.9,3.3080192]
[1769026287014,0.09838485,3024.5,3022.9,3.3080192]
[1769026287946,0.09838485,3024.3,3022.8,3.8551649]
[1769026288105,6.61331922,3024.2,3022.8,0.547]
[1769026288301,0.67117041,3024.1,3022.8,3.85516569]
[1769026288938,0.76955526,3024.1,3022.8,3.30816569]
[1769026289837,0.76955526,3024.1,3022.8,3.30817448]
[1769026289838,0.67117041,3024.1,3022.8,3.30817448]
[1769026290136,3.30665961,3024.2,3022.7,6.61660104]
[1769026290305,0.09838485,3024.5,3022.7,22.68387564]
[1769026290637,0.09838485,3023.9,3022.6,0.547]
[1769026291207,0.09838485,3023.7,3022.6,0.547]
[1769026292155,0.09838485,3023.3,3022.1,0.547]
[1769026292654,0.09838485,3023.1,3022.1,0.547]
[1769026292809,0.09838485,3023.5,3022.1,0.547]
[1769026293009,0.68112754,3023.5,3022.1,0.547]
[1769026293216,0.09838485,3023.4,3022.1,0.547]
[1769026293539,0.09838485,3022.6,3022.1,0.46210093]
[1769026293850,0.01619947,3022.1,3021.4,0.001]
[1769026294745,0.09838485,3022.0,3021.4,0.001]
[1769026294944,0.01619947,3022.1,3021.4,0.001]
[1769026295161,0.09838485,3021.9,3021.4,0.001]
[1769026295671,0.01619947,3022.1,3021.4,0.001]
[1769026296031,0.09838485,3022.0,3021.4,0.001]
[1769026296267,0.09838485,3021.8,3021.4,0.001]
[1769026296634,0.09838485,3021.8,3020.9,0.55]
[1769026296833,3.40769741,3021.8,3020.9,0.55]
[1769026297144,0.09838485,3021.6,3020.9,0.55]
[1769026297351,0.09838485,3021.8,3020.9,0.55]
[1769026297560,0.01619947,3022.1,3020.9,7.170513]
[1769026297855,0.09838485,3022.0,3020.9,7.170513]
[1769026298029,0.09838485,3021.8,3020.9,3.86024123]
[1769026298469,0.09838485,3021.8,3020.9,3.86026485]
[1769026298837,0.09838485,3021.6,3020.9,0.55]
[1769026299059,0.09838485,3021.4,3020.9,0.55]
[1769026299252,0.09838485,3021.4,3020.0,3.31122971]
[1769026299253,0.09838485,3021.1,3020.0,3.31122971]
[1769026299456,0.09838485,3021.4,3020.5,3.31064637]
[1769026299656,0.09838485,3021.2,3020.1,0.33120297]
[1769026299842,0.09838485,3021.2,3020.4,3.31072107]
[1769026300641,0.09838485,3021.6,3020.0,9.93377481]
[1769026300843,0.09838485,3021.4,3020.0,9.93377481]
[1769026301059,0.09838485,3021.4,3020.1,12.75897408]
[1769026301677,0.09838485,3021.2,3020.1,12.75897408]
[1769026301879,0.09838485,3022.0,3020.1,12.75897408]
[1769026302091,0.09838485,3022.0,3020.0,13.24503308]
[1769026302092,0.09838485,3021.4,3020.0,9.93377481]
[1769026302271,0.09838485,3021.2,3020.0,6.62251654]
[1769026302589,0.09838485,3021.4,3020.0,6.62251654]
[1769026302878,0.09838485,3021.2,3020.0,6.62251654]
[1769026303074,0.09838485,3021.2,3020.0,9.93377481]
[1769026303576,0.09838485,3021.6,3020.0,22.69274889]
[1769026303774,0.09838485,3021.4,3020.1,12.75897408]
[1769026304079,0.09838485,3021.0,3020.0,6.62251654]
[1769026304277,0.09838485,3021.4,3020.0,22.69274889]
[1769026304973,0.09838485,3021.6,3020.0,22.69274889]
[1769026305283,0.09838485,3021.8,3020.1,12.75897408]
[1769026305580,0.09838485,3021.4,3020.1,12.75897408]
[1769026305946,0.09838485,3021.7,3020.1,12.75897408]
[1769026306168,0.09838485,3022.0,3020.1,12.75897408]
[1769026306369,0.09838485,3021.4,3020.1,12.75897408]
[1769026306582,0.09838485,3020.8,3020.0,6.62251654]
[1769026307180,0.09838485,3021.0,3020.0,6.62251654]
[1769026307355,0.09838485,3021.0,3020.3,0.001]
[1769026308952,0.09838485,3020.8,3020.3,0.001]
[1769026309156,0.09838485,3021.4,3020.3,0.001]
[1769026309483,0.09838485,3021.0,3020.3,0.001]
[1769026310251,0.09838485,3021.3,3020.3,0.001]
[1769026310451,0.43918816,3021.3,3020.3,0.001]
[1769026310760,0.002,3021.6,3020.3,7.38785692]
[1769026310951,0.09838485,3021.5,3020.4,3.31081975]
[1769026311153,0.09838485,3021.3,3020.4,3.31081975]
[1769026311355,0.002,3021.6,3020.4,14.00849642]
[1769026311604,0.002,3021.6,3020.5,7.38685692]
[1769026311890,7.32814196,3022.6,3020.5,7.38685692]
[1769026311891,0.09838485,3022.6,3020.5,7.38685692]
[1769026312050,0.09838485,3021.4,3020.4,6.6216395]
[1769026312253,0.09838485,3021.2,3020.3,3.31187783]
[1769026312451,0.09838485,3021.0,3020.3,0.001]
[1769026312755,0.09838485,3021.0,3020.3,3.31191876]
[1769026312954,0.09838485,3021.2,3020.3,0.001]
[1769026313254,0.09838485,3021.1,3020.3,0.001]
[1769026313671,0.09838485,3021.8,3020.3,7.38785692]
[1769026313879,0.09838485,3021.6,3020.3,7.38785692]
[1769026314116,0.09838485,3021.7,3020.3,7.38785692]
[1769026314285,0.09838485,3021.8,3020.3,7.38785692]
[1769026314704,3.4072327,3022.2,3020.3,7.38785692]
[1769026315022,0.09838485,3021.5,3020.4,6.6216395]
[1769026315521,0.09838485,3021.3,3020.4,6.6216395]
[1769026315718,0.09838485,3021.5,3020.4,6.6216395]
[1769026316519,0.09838485,3021.7,3020.4,6.6216395]
[1769026316719,0.09838485,3021.5,3020.4,6.6216395]
[1769026316889,0.09838485,3021.7,3020.4,6.6216395]
[1769026317322,0.09838485,3021.5,3020.4,6.6216395]
[1769026317843,0.09838485,3022.2,3020.5,7.38685692]
[1769026318046,0.09838485,3022.5,3020.7,7.38685692]
[1769026318345,0.09838485,3022.3,3020.7,7.38685692]
[1769026319109,0.09838485,3022.8,3020.7,7.38685692]
[1769026319410,0.09838485,3022.6,3021.1,5.41851386]
[1769026319636,0.09838485,3022.6,3021.3,5.41851386]
[1769026320238,0.002,3021.7,3021.4,0.547]
[1769026320639,0.09838485,3021.6,3020.8,3.31032443]
[1769026320812,0.09838485,3021.6,3020.6,3.85852323]
[1769026320813,0.002,3023.3,3022.5,5.41851386]
[1769026321011,5.29863246,3024.4,3022.6,0.51749308]
[1769026321229,5.39701731,3024.3,3022.6,0.51749308]
[1769026321542,0.10038485,3024.6,3022.6,0.51749308]
[1769026321543,0.09838485,3023.9,3022.6,0.51749308]
[1769026321742,0.81024347,3023.8,3021.6,3.30945443]
[1769026321909,5.29863246,3023.7,3021.9,3.30909905]
[1769026322243,5.90952005,3023.6,3022.0,3.30905224]
[1769026322417,5.90952005,3023.6,3021.9,3.30915344]
[1769026322621,0.09838485,3023.5,3021.6,3.30942745]
[1769026322827,6.10887593,3023.5,3021.7,3.30937844]
[1769026323124,0.60079049,3023.4,3021.9,3.30911012]
[1769026323427,3.9083414,3023.4,3021.5,5.41851386]
[1769026323738,0.47185849,3023.3,3021.5,5.41851386]
[1769026323939,0.47185849,3023.3,3021.4,6.61944792]
[1769026324318,0.90862832,3023.5,3021.4,6.61944792]
[1769026324526,0.09838485,3025.1,3021.4,6.61944792]
[1769026324527,5.29863246,3026.7,3024.5,0.09838485]
[1769026324830,5.30063246,3027.4,3025.0,0.09838485]
[1769026325020,5.30063246,3027.4,3025.1,2.75743839]
[1769026325220,3.30647699,3026.2,3024.1,0.547]
[1769026325426,0.002,3026.2,3024.2,3.30665961]
[1769026325627,0.002,3026.2,3024.2,6.61331922]
[1769026326622,0.002,3026.2,3024.2,9.91997883]
[1769026326831,0.002,3026.2,3024.2,6.61331922]
[1769026327850,0.002,3026.2,3024.3,5.41851386]
[1769026328024,0.002,3026.2,3024.4,5.41851386]
[1769026329152,0.002,3026.2,3024.5,5.51689871]
[1769026329542,0.002,3026.2,3024.7,5.41851386]
[1769026331324,0.002,3026.2,3024.7,5.51689871]
[1769026331521,0.002,3026.2,3025.1,5.41851386]
[1769026331830,0.002,3027.4,3025.3,5.41851386]
[1769026332029,0.002,3027.4,3025.4,5.51689871]
[1769026332235,0.09838485,3027.2,3025.4,5.41851386]
[1769026332535,0.09838485,3026.8,3024.8,9.9180111]
[1769026332729,0.09838485,3026.8,3024.8,13.2240148]
[1769026332921,0.09838485,3027.1,3024.9,5.41851386]
[1769026333127,3.40362725,3027.4,3024.9,5.41851386]
[1769026333322,0.09838485,3026.8,3024.9,5.41851386]
[1769026333523,3.30402797,3026.7,3025.0,6.61157024]
[1769026333754,0.09838485,3027.2,3025.0,6.61157024]
[1769026333755,0.34024128,3026.6,3025.1,5.41851386]
[1769026334063,0.09838485,3026.6,3025.0,6.61157024]
[1769026334380,0.09838485,3026.2,3024.5,0.001]
[1769026334561,0.09838485,3026.2,3024.8,3.3059417]
[1769026334952,0.09838485,3026.2,3024.9,3.30588669]
[1769026335348,0.09838485,3026.4,3024.9,3.30588669]
[1769026335558,0.09838485,3027.1,3024.6,3.30617479]
[1769026335863,3.30345753,3027.2,3024.9,3.48380641]
[1769026335864,0.09838485,3026.8,3024.9,3.48380641]
[1769026336232,0.09838485,3026.2,3024.5,6.61366324]
[1769026336941,0.09838485,3026.4,3024.6,3.48380641]
[1769026337454,0.09838485,3026.8,3024.6,3.48380641]
[1769026337673,0.09838485,3027.0,3024.5,13.22632648]
[1769026337674,3.30371006,3026.9,3024.8,3.48380641]
[1769026338327,3.30327354,3027.3,3024.8,3.48380641]
[1769026338527,3.7550082,3027.3,3025.0,3.48380641]
[1769026339227,0.09838485,3027.1,3025.0,3.48380641]
[1769026339427,0.35334981,3027.3,3025.2,3.48380641]
[1769026339632,0.35334981,3027.3,3025.4,3.48380641]
[1769026339967,0.002,3027.4,3025.6,3.48380641]
[1769026340393,0.002,3027.4,3025.8,3.48380641]
[1769026340687,0.002,3027.4,3025.8,3.58219126]
[1769026341578,0.002,3027.5,3026.1,3.48380641]
[1769026343672,0.002,3027.5,3026.3,3.48380641]
[1769026344460,0.002,3027.5,3026.2,3.30447425]
[1769026344662,0.09838485,3027.4,3026.1,3.30453907]
[1769026344866,0.09838485,3027.4,3025.7,4.02980641]
[1769026345091,0.09838485,3027.4,3026.1,3.30455624]
[1769026345290,0.002,3027.5,3026.2,3.48380641]
[1769026345696,0.002,3027.5,3026.3,9.91309518]
[1769026345864,0.002,3027.5,3026.4,3.48380641]
[1769026346859,0.002,3027.5,3026.4,4.34125329]
[1769026347259,0.002,3027.5,3026.4,3.48380641]
[1769026347679,0.002,3027.5,3026.5,3.3041467]
[1769026347860,0.002,3027.5,3026.5,6.6082934]
[1769026348067,0.002,3027.5,3026.6,3.48380641]
[1769026349797,0.002,3027.7,3026.2,3.30444076]
[1769026349798,0.002,3027.7,3026.8,3.48380641]
[1769026350268,0.002,3027.7,3026.9,3.48380641]
[1769026351670,0.002,3027.7,3026.5,3.30409307]
[1769026351859,0.002,3027.7,3026.6,3.48380641]
[1769026352055,0.002,3027.7,3026.9,6.78750676]
[1769026352391,0.002,3027.7,3027.0,3.48380641]
[1769026353559,0.002,3027.7,3027.1,6.7872982]
[1769026353888,0.002,3027.7,3027.2,3.48380641]
[1769026354187,0.09838485,3028.6,3027.2,3.48380641]
[1769026354487,0.09838485,3028.4,3027.2,3.48380641]
[1769026354690,0.09838485,3028.4,3027.0,3.30358277]
[1769026354691,0.09838485,3028.0,3027.0,3.30358277]
[1769026354895,0.09838485,3028.0,3027.0,6.78738918]
[1769026355100,0.09838485,3028.4,3027.1,3.48380641]
[1769026355257,0.09838485,3027.8,3026.1,3.48380641]
[1769026355463,0.09838485,3027.8,3026.7,3.30392417]
[1769026355661,0.09838485,3028.2,3026.9,3.48380641]
[1769026355662,0.09838485,3027.9,3026.9,3.48380641]
[1769026356069,0.43846793,3027.9,3026.9,3.48380641]
[1769026357095,0.002,3027.5,3026.9,3.48380641]
[1769026357615,0.002,3027.8,3026.8,3.48380641]
[1769026357817,0.002,3027.8,3027.0,3.48380641]
[1769026359803,0.002,3027.8,3027.2,3.48380641]
[1769026360508,0.10038485,3029.1,3027.2,3.48380641]
[1769026360681,0.09838485,3028.9,3027.4,3.48380641]
[1769026360875,0.09838485,3029.0,3027.4,3.48380641]
[1769026361679,0.002,3029.1,3027.4,3.48380641]
[1769026361903,0.002,3029.1,3027.7,3.48380641]
[1769026362476,0.09838485,3029.8,3027.7,3.48380641]
[1769026362720,0.09838485,3029.9,3027.9,3.48380641]
[1769026362916,0.09838485,3029.7,3027.9,3.48380641]
[1769026363126,0.09838485,3030.1,3028.1,3.48380641]
[1769026363430,0.09838485,3030.1,3027.6,16.5147311]
[1769026363431,0.09838485,3030.6,3028.3,3.48380641]
[1769026363796,0.09838485,3030.4,3028.5,3.48380641]
[1769026364134,0.09838485,3030.4,3028.4,9.9062211]
[1769026364135,3.39827982,3030.4,3028.7,3.48380641]
[1769026364600,3.3983548,3030.4,3028.7,3.48380641]
[1769026365204,0.09838485,3030.0,3028.7,3.48380641]
[1769026365403,0.09838485,3030.7,3028.7,3.48380641]
[1769026365631,0.09838485,3030.7,3028.9,0.92553716]
[1769026365829,0.09838485,3030.7,3028.6,0.546]
[1769026365830,3.29967663,3030.6,3029.1,0.92553716]
[1769026366036,0.09838485,3030.5,3029.1,0.92553716]
[1769026366691,3.52476584,3031.8,3029.1,0.92553716]
[1769026366692,3.2995669,3030.8,3029.1,0.92553716]
[1769026366899,0.09838485,3029.8,3029.1,0.92553716]
[1769026367119,0.09838485,3030.3,3029.1,0.92553716]
[1769026367429,0.09838485,3030.7,3029.1,0.92553716]
[1769026367599,9.89792445,3031.0,3029.1,0.92553716]
[1769026367600,6.59858281,3031.0,3029.1,0.92553716]
[1769026367797,3.29967663,3030.6,3029.1,0.92553716]
[1769026368004,0.09838485,3030.1,3029.1,0.92553716]
[1769026368199,0.09838485,3029.9,3029.1,0.92553716]
[1769026368414,0.09838485,3030.3,3029.1,0.92553716]
[1769026368932,0.09838485,3029.7,3029.1,0.92553716]
[1769026369151,0.09838485,3029.7,3028.6,1.47153716]
[1769026369430,0.09838485,3029.7,3028.7,0.92553716]
[1769026369996,3.39906579,3029.7,3028.7,0.92553716]
[1769026370201,0.33990658,3029.6,3028.7,0.92553716]
[1769026370406,0.33990658,3029.6,3028.8,0.92553716]
[1769026370606,3.39887208,3029.9,3028.8,0.92553716]
[1769026370844,0.09838485,3030.3,3028.8,0.92553716]
[1769026371249,0.10038485,3030.5,3028.8,0.92553716]
[1769026371250,0.002,3030.5,3028.8,0.92553716]
[1769026371417,0.002,3030.5,3029.1,0.92553716]
[1769026371615,0.002,3031.1,3029.0,0.92553716]
[1769026372043,0.002,3031.1,3029.2,0.92553716]
[1769026372245,0.002,3031.1,3029.3,0.92553716]
[1769026372624,0.09838485,3031.0,3029.3,0.92553716]
[1769026373550,0.09838485,3030.6,3029.3,0.92553716]
[1769026374120,6.59957102,3030.5,3029.3,0.92553716]
[1769026374320,0.10038485,3031.1,3029.4,0.92553716]
[1769026374520,0.09838485,3030.9,3029.4,0.92553716]
[1769026374852,0.09838485,3030.7,3029.4,0.92553716]
[1769026375219,0.09838485,3030.6,3029.4,0.92553716]
[1769026376138,6.59957102,3030.5,3029.4,0.92553716]
[1769026376342,0.66979559,3030.4,3029.4,0.92553716]
[1769026376715,0.09838485,3030.1,3028.7,0.92553716]
[1769026376919,0.09838485,3030.1,3028.8,0.92553716]
[1769026377725,0.09838485,3029.9,3028.8,0.92553716]
[1769026378125,0.09838485,3029.9,3028.6,0.546]
[1769026378126,6.60153154,3029.6,3028.6,0.546]
[1769026378327,0.66999164,3029.5,3028.6,0.546]
[1769026379022,0.09838485,3029.4,3028.6,0.546]
[1769026379862,0.66999164,3029.5,3028.6,0.546]
[1769026380070,3.39838815,3030.3,3028.8,4.29195101]
[1769026380237,3.3000033,3030.3,3028.8,7.59358862]
[1769026380441,0.7269727,3030.2,3028.8,7.59358862]
[1769026380652,0.09838485,3029.7,3027.7,0.9903134]
[1769026380967,0.09838485,3030.1,3028.7,4.29204849]
[1769026381334,0.7269727,3030.2,3028.8,0.9903134]
[1769026381526,0.09838485,3030.2,3028.8,0.9903134]
[1769026381741,3.3000033,3030.3,3028.8,0.9903134]
[1769026381932,3.29993818,3030.4,3028.8,0.9903134]
[1769026382141,3.29993818,3030.4,3029.0,0.9903134]
[1769026382346,0.09838485,3029.5,3028.1,0.9903134]
[1769026382564,0.09838485,3029.3,3027.8,3.30267469]
[1769026382748,0.09838485,3029.5,3028.2,3.30220876]
[1769026383071,0.09838485,3029.5,3028.1,0.9903134]
[1769026383072,0.09838485,3029.3,3028.1,0.9903134]
[1769026383362,0.09838485,3029.1,3028.1,0.9903134]
[1769026383667,0.09838485,3029.3,3028.1,4.29270564]
[1769026383970,0.09838485,3029.1,3028.1,0.9903134]
[1769026384150,0.09838485,3029.1,3027.5,0.546]
[1769026384151,0.09838485,3029.9,3028.2,0.9903134]
[1769026384331,0.09838485,3029.7,3028.2,0.9903134]
[1769026384535,0.09838485,3029.7,3028.3,0.9903134]
[1769026384738,0.09838485,3029.5,3028.3,0.9903134]
[1769026384949,0.09838485,3029.2,3027.8,0.9903134]
[1769026385150,0.09838485,3029.7,3028.3,0.9903134]
[1769026385568,0.09838485,3029.5,3028.3,0.9903134]
[1769026385936,0.09838485,3029.1,3027.9,3.30254176]
[1769026386259,0.09838485,3029.1,3028.0,0.9903134]
[1769026386458,0.3497971,3029.1,3028.0,0.9903134]
[1769026386872,0.09838485,3029.5,3028.0,0.9903134]
[1769026387169,0.128,3030.2,3028.0,0.9903134]
[1769026387369,0.09838485,3029.7,3028.0,0.9903134]
[1769026388075,0.09838485,3029.3,3028.0,0.9903134]
[1769026388260,0.09838485,3029.3,3028.1,3.30240084]
[1769026388457,0.3399441,3029.2,3028.2,0.9903134]
[1769026388664,3.30060751,3029.8,3028.2,0.9903134]
[1769026388966,0.09838485,3029.7,3028.2,0.9903134]
[1769026389203,3.30060751,3029.8,3028.2,0.9903134]
[1769026389372,0.09838485,3030.3,3028.1,9.90720252]
[1769026389373,0.09838485,3030.3,3028.4,0.9903134]
[1769026389868,0.09838485,3030.2,3028.4,0.9903134]
[1769026390239,0.09838485,3030.4,3028.6,0.9903134]
[1769026390567,0.09838485,3030.2,3028.6,0.9903134]
[1769026390746,0.09838485,3030.0,3028.6,0.9903134]
[1769026390949,0.09838485,3029.8,3028.6,0.9903134]
[1769026392146,0.09838485,3029.8,3028.6,4.29206651]
[1769026392147,3.39895014,3029.8,3028.6,4.29206651]
[1769026392381,0.33989501,3029.7,3028.7,0.9903134]
[1769026392582,3.39873327,3030.0,3028.7,0.9903134]
[1769026392782,0.09838485,3029.8,3028.7,0.9903134]
[1769026392997,6.69908169,3030.0,3028.7,0.9903134]
[1769026393201,0.66990817,3029.9,3028.7,0.9903134]
[1769026394319,0.09838485,3030.5,3028.9,0.9903134]
[1769026394464,0.002,3029.7,3028.9,0.9903134]
[1769026394787,0.002,3029.7,3029.0,0.9903134]
[1769026396202,0.002,3029.7,3029.1,3.30131062]
[1769026396359,0.002,3029.7,3029.1,0.90641612]
[1769026396863,0.002,3029.7,3028.8,3.30156579]
[1769026397062,0.002,3029.7,3028.7,3.30165769]
[1769026397298,0.002,3029.7,3028.5,1.45241612]
[1769026397602,0.002,3029.7,3028.7,3.30171854]
[1769026397811,0.002,3029.7,3028.5,4.7543271]